[Event "POL-chT 1st League 2020"]
[Site "Ustron"]
[Date "2020.09.05"]
[Round "1.2"]
[White "Rawicz, Karol"]
[Black "Mis, Mieszko"]
[Result "0-1"]
[ECO "E47"]
[WhiteElo "2225"]
[BlackElo "2350"]
[Annotator "ChessBase"]
[PlyCount "68"]
[EventDate "2020.09.05"]
[EventType "team-tourn"]
[EventCountry "POL"]
[SourceTitle "playchess.com"]
[Source "ChessBase"]
[SourceQuality "1"]
[TimeControl "40/5400+30:1800+30"]

1. d4 {[%emt 0:00:00]} Nf6 {[%emt 0:00:00]} 2. c4 {[%emt 0:00:00]} e6 {[%emt 0:00:01]} 3. Nc3 {[%emt 0:00:00]} Bb4 {[%emt 0:00:14]} 4. e3 {[%emt 0:01:08]} O-O {[%emt 0:01:27]} 5. Bd3 {[%emt 0:01:03]} c5 {[%emt 0:01:27]} 6. Nge2 {[%emt 0:01:05]} d5 {[%emt 0:01:01]} 7. cxd5 {[%emt 0:08:05]} cxd4 {[%emt 0:01:56]} 8. exd4 {[%emt 0:00:09]} Nxd5 {[%emt 0:01:35]} 9. O-O {[%emt 0:00:46]} Nc6 {[%emt 0:01:49]} 10. Bc2 {[%emt 0:06:20]} Nf6 {[%emt 0:13:39]} 11. Qd3 {[%emt 0:07:11]} Ne7 {[%emt 0:16:19]} 12. Bg5 {[%emt 0:15:02]} Ng6 {[%emt 0:03:12]} 13. h4 {[%emt 0:02:04]} Qa5 {[%emt 0:12:47]} 14. Bxf6 {[%emt 0:03:27]} gxf6 {[%emt 0:00:07]} 15. d5 {[%emt 0:00:35]} Rd8 {[%emt 0:13:05]} 16. h5 {[%emt 0:04:16]} Nf8 {[%emt 0:00:38]} 17. Ne4 {[%emt 0:10:23]} Nd7 {[%emt 0:10:51]} 18. dxe6 {[%emt 0:02:00]} fxe6 {[%emt 0:00:27]} 19. Rad1 {[%emt 0:02:02]} Be7 {[%emt 0:04:43]} 20. Nf4 {[%emt 0:18:01]} Nf8 {[%emt 0:07:04]} 21. Qg3+ {[%emt 0:00:38]} Kf7 {[%emt 0:00:24]} 22. h6 {[%emt 0:03:40]} Rxd1 {[%emt 0:01:16]} 23. Rxd1 {[%emt 0:03:17]} Qe5 {[%emt 0:00:25]} 24. Qf3 {[%emt 0:10:06]} Bd7 {[%emt 0:02:02]} 25. Nd3 {[%emt 0:00:07]} Qc7 {[%emt 0:01:11]} 26. Bb3 {[%emt 0:00:42]} Rd8 {[%emt 0:01:40]} 27. Qh5+ {[%emt 0:00:47]} Ng6 {[%emt 0:01:06]} 28. Qf5 {[%emt 0:00:33]} Kf8 {[%emt 0:01:32]} 29. Bxe6 {[%emt 0:00:21]} Qc2 {[%emt 0:00:02]} 30. Rd2 {[%emt 0:00:12]} Qb1+ {[%emt 0:00:52]} 31. Kh2 {[%emt 0:00:31]} Bxe6 {[%emt 0:01:02]} 32. Qxe6 {[%emt 0:00:01]} Rxd3 {[%emt 0:00:03]} 33. Nxf6 {[%emt 0:01:23]} Bd6+ {[%emt 0:00:15]} 34. g3 {[%emt 0:00:01]} Bxg3+ {[%emt 0:00:04]} 0-1

[Event "POL-chT 1st League 2020"]
[Site "Ustron"]
[Date "2020.09.05"]
[Round "1.3"]
[White "Kozak, Antoni"]
[Black "Klepek, Witold"]
[Result "1-0"]
[ECO "A13"]
[WhiteElo "2347"]
[BlackElo "2159"]
[Annotator "ChessBase"]
[PlyCount "99"]
[EventDate "2020.09.05"]
[EventType "team-tourn"]
[EventCountry "POL"]
[SourceTitle "playchess.com"]
[Source "ChessBase"]
[SourceQuality "1"]
[TimeControl "40/5400+30:1800+30"]

1. c4 {[%emt 0:00:00]} Nf6 {[%emt 0:00:00]} 2. Nf3 {[%emt 0:00:00]} e6 {[%emt 0:00:00]} 3. g3 {[%emt 0:00:00]} d5 {[%emt 0:00:04]} 4. Bg2 {[%emt 0:00:00]} dxc4 {[%emt 0:00:38]} 5. Qa4+ {[%emt 0:00:27]} Bd7 {[%emt 0:00:38]} 6. Qxc4 {[%emt 0:00:07]} c5 {[%emt 0:00:03]} 7. Ne5 {[%emt 0:05:32]} Qc8 {[%emt 0:00:05]} 8. b3 {[%emt 0:03:12]} Nc6 {[%emt 0:06:45]} 9. Nxd7 {[%emt 0:00:09]} Qxd7 {[%emt 0:00:05]} 10. Bb2 {[%emt 0:00:25]} Be7 {[%emt 0:03:07]} 11. d3 {[%emt 0:06:11]} O-O {[%emt 0:02:19]} 12. Nd2 {[%emt 0:03:40]} Rac8 {[%emt 0:05:22]} 13. Rd1 {[%emt 0:02:28]} Nd5 {[%emt 0:09:24]} 14. O-O {[%emt 0:03:21]} Rfd8 {[%emt 0:03:20]} 15. Rfe1 {[%emt 0:06:16]} a6 {[%emt 0:03:16]} 16. Qc1 {[%emt 0:00:45]} b5 {[%emt 0:04:20]} 17. Qa1 {[%emt 0:00:54]} f6 {[%emt 0:07:50]} 18. h4 {[%emt 0:05:00]} Bf8 {[%emt 0:04:11]} 19. Bh3 {[%emt 0:00:23]} Re8 {[%emt 0:04:13]} 20. Rc1 {[%emt 0:01:40]} Qa7 {[%emt 0:01:07]} 21. a3 {[%emt 0:01:18]} Qb6 {[%emt 0:05:48]} 22. e3 {[%emt 0:05:44]} Rcd8 {[%emt 0:06:13]} 23. Ne4 {[%emt 0:02:27]} e5 {[%emt 0:04:28]} 24. Rc2 {[%emt 0:01:15]} Kh8 {[%emt 0:01:23]} 25. Qa2 {[%emt 0:12:58]} Qa5 {[%emt 0:08:06]} 26. Qb1 {[%emt 0:00:59]} Qb6 {[%emt 0:00:41]} 27. Rec1 {[%emt 0:04:10]} Na5 {[%emt 0:00:44]} 28. Nxc5 {[%emt 0:05:18]} Bxc5 {[%emt 0:01:06]} 29. Rxc5 {[%emt 0:00:15]} Nxb3 {[%emt 0:00:04]} 30. Rc6 {[%emt 0:00:03]} Qa7 {[%emt 0:03:17]} 31. Re1 {[%emt 0:01:26]} Nc5 {[%emt 0:02:51]} 32. Qc2 {[%emt 0:02:00]} Na4 {[%emt 0:00:39]} 33. Ba1 {[%emt 0:00:43]} Qe7 {[%emt 0:01:59]} 34. Qc1 {[%emt 0:05:08]} b4 {[%emt 0:02:05]} 35. Qc2 {[%emt 0:02:33]} Ndb6 {[%emt 0:02:06]} 36. axb4 {[%emt 0:01:25]} Qxb4 {[%emt 0:00:04]} 37. Rb1 {[%emt 0:00:04]} Qa3 {[%emt 0:00:48]} 38. d4 {[%emt 0:00:31]} e4 {[%emt 0:01:44]} 39. d5 {[%emt 0:02:30]} Rxd5 {[%emt 0:05:10]} 40. Bd4 {[%emt 0:00:00]} Rxd4 {[%emt 0:00:00]} 41. exd4 {[%emt 0:00:35]} e3 {[%emt 0:01:37]} 42. Rcxb6 {[%emt 0:04:24]} Nxb6 {[%emt 0:01:06]} 43. Rxb6 {[%emt 0:00:06]} Qa1+ {[%emt 0:00:18]} 44. Kh2 {[%emt 0:02:54]} Qxd4 {[%emt 0:02:33]} 45. Re6 {[%emt 0:00:07]} Rd8 {[%emt 0:01:05]} 46. Rxe3 {[%emt 0:00:12]} a5 {[%emt 0:01:41]} 47. Qc6 {[%emt 0:01:45]} g6 {[%emt 0:00:55]} 48. Re8+ {[%emt 0:00:06]} Rxe8 {[%emt 0:00:05]} 49. Qxe8+ {[%emt 0:00:04]} Kg7 {[%emt 0:00:05]} 50. Qe7+ {[%emt 0:00:02]} 1-0

[Event "POL-chT 1st League 2020"]
[Site "Ustron"]
[Date "2020.09.05"]
[Round "1.4"]
[White "Milanowski, Jan"]
[Black "Chyzy, Jakub"]
[Result "0-1"]
[ECO "A45"]
[WhiteElo "1751"]
[BlackElo "2249"]
[Annotator "ChessBase"]
[PlyCount "69"]
[EventDate "2020.09.05"]
[EventType "team-tourn"]
[EventCountry "POL"]
[SourceTitle "playchess.com"]
[Source "ChessBase"]
[SourceQuality "1"]
[TimeControl "40/5400+30:1800+30"]

1. d4 {[%emt 0:00:00]} Nf6 {[%emt 0:00:00]} 2. Bf4 {[%emt 0:00:02]} d6 {[%emt 0:00:00]} 3. e3 {[%emt 0:00:33]} Nbd7 {[%emt 0:00:10]} 4. Nf3 {[%emt 0:01:53]} Nh5 {[%emt 0:01:17]} 5. Bg5 {[%emt 0:01:12]} h6 {[%emt 0:00:11]} 6. Bh4 {[%emt 0:01:42]} g5 {[%emt 0:00:37]} 7. Bg3 {[%emt 0:09:51]} Bg7 {[%emt 0:00:28]} 8. c3 {[%emt 0:02:07]} f5 {[%emt 0:04:32]} 9. Nfd2 {[%emt 0:01:46]} Nxg3 {[%emt 0:01:26]} 10. hxg3 {[%emt 0:00:06]} Nf6 {[%emt 0:04:47]} 11. Bc4 {[%emt 0:05:29]} d5 {[%emt 0:05:08]} 12. Be2 {[%emt 0:02:39]} O-O {[%emt 0:02:08]} 13. Nf3 {[%emt 0:03:34]} Ng4 {[%emt 0:11:16]} 14. Nbd2 {[%emt 0:04:47]} Qd6 {[%emt 0:00:44]} 15. Qb3 {[%emt 0:20:01]} c6 {[%emt 0:07:43]} 16. a4 {[%emt 0:11:57]} Be6 {[%emt 0:10:40]} 17. a5 {[%emt 0:03:48]} Rab8 {[%emt 0:02:34]} 18. Qc2 {[%emt 0:00:28]} Rbe8 {[%emt 0:07:10]} 19. Bd3 {[%emt 0:07:01]} Bc8 {[%emt 0:01:41]} 20. Nb3 {[%emt 0:03:28]} e5 {[%emt 0:03:16]} 21. dxe5 {[%emt 0:00:55]} Nxe5 {[%emt 0:01:29]} 22. Nxe5 {[%emt 0:00:10]} Qxe5 {[%emt 0:03:43]} 23. Kf1 {[%emt 0:04:45]} f4 {[%emt 0:02:02]} 24. gxf4 {[%emt 0:01:14]} gxf4 {[%emt 0:00:08]} 25. exf4 {[%emt 0:04:59]} Qxf4 {[%emt 0:04:36]} 26. Re1 {[%emt 0:01:36]} Rxe1+ {[%emt 0:05:05]} 27. Kxe1 {[%emt 0:00:01]} b6 {[%emt 0:00:54]} 28. axb6 {[%emt 0:02:27]} axb6 {[%emt 0:00:09]} 29. Qd2 {[%emt 0:01:21]} Qg4 {[%emt 0:01:51]} 30. Kf1 {[%emt 0:00:31]} c5 {[%emt 0:02:14]} 31. Bc2 {[%emt 0:01:12]} d4 {[%emt 0:10:12]} 32. cxd4 {[%emt 0:01:11]} c4 {[%emt 0:00:29]} 33. Bd1 {[%emt 0:00:28]} Qd7 {[%emt 0:02:52]} 34. Nc1 {[%emt 0:01:21]} Qxd4 {[%emt 0:00:08]} 35. Kg1 {[%emt 0:01:05]} 0-1

[Event "POL-chT 1st League 2020"]
[Site "Ustron"]
[Date "2020.09.05"]
[Round "1.5"]
[White "Czernek, Tymon"]
[Black "Sapeta, Robert"]
[Result "1-0"]
[ECO "C16"]
[WhiteElo "2267"]
[BlackElo "1882"]
[Annotator "ChessBase"]
[PlyCount "99"]
[EventDate "2020.09.05"]
[EventType "team-tourn"]
[EventCountry "POL"]
[SourceTitle "playchess.com"]
[Source "ChessBase"]
[SourceQuality "1"]
[TimeControl "40/5400+30:1800+30"]

1. e4 {[%emt 0:00:00]} e6 {[%emt 0:00:00]} 2. d4 {[%emt 0:00:00]} d5 {[%emt 0:00:00]} 3. Nc3 {[%emt 0:00:00]} Bb4 {[%emt 0:00:00]} 4. e5 {[%emt 0:00:00]} b6 {[%emt 0:00:18]} 5. a3 {[%emt 0:00:20]} Bf8 {[%emt 0:00:07]} 6. Qg4 {[%emt 0:02:25]} Ba6 {[%emt 0:01:35]} 7. Bxa6 {[%emt 0:01:00]} Nxa6 {[%emt 0:00:05]} 8. Nge2 {[%emt 0:00:06]} Qd7 {[%emt 0:00:55]} 9. O-O {[%emt 0:01:30]} h5 {[%emt 0:06:34]} 10. Qg3 {[%emt 0:01:09]} Ne7 {[%emt 0:00:22]} 11. Qd3 {[%emt 0:03:31]} Nb8 {[%emt 0:08:30]} 12. b4 {[%emt 0:01:50]} a6 {[%emt 0:10:51]} 13. b5 {[%emt 0:05:53]} axb5 {[%emt 0:05:21]} 14. Nxb5 {[%emt 0:00:08]} Ra4 {[%emt 0:10:44]} 15. Nec3 {[%emt 0:02:37]} Rc4 {[%emt 0:00:35]} 16. a4 {[%emt 0:01:02]} Nbc6 {[%emt 0:01:33]} 17. Be3 {[%emt 0:02:34]} Nf5 {[%emt 0:05:47]} 18. Rfc1 {[%emt 0:03:10]} Bb4 {[%emt 0:07:46]} 19. Nd1 {[%emt 0:01:10]} Na5 {[%emt 0:16:47]} 20. Rcb1 {[%emt 0:03:23]} f6 {[%emt 0:12:14]} 21. c3 {[%emt 0:03:10]} Be7 {[%emt 0:00:28]} 22. exf6 {[%emt 0:00:27]} gxf6 {[%emt 0:00:28]} 23. Nb2 {[%emt 0:00:18]} Rg8 {[%emt 0:01:21]} 24. Nxc4 {[%emt 0:00:35]} Nxc4 {[%emt 0:00:32]} 25. Bc1 {[%emt 0:03:33]} c6 {[%emt 0:00:33]} 26. Na3 {[%emt 0:01:06]} Bxa3 {[%emt 0:03:05]} 27. Bxa3 {[%emt 0:00:02]} Qg7 {[%emt 0:01:32]} 28. Qh3 {[%emt 0:00:39]} Kd7 {[%emt 0:02:45]} 29. a5 {[%emt 0:01:09]} b5 {[%emt 0:01:10]} 30. a6 {[%emt 0:01:25]} Qg6 {[%emt 0:00:44]} 31. Re1 {[%emt 0:00:48]} Ra8 {[%emt 0:00:37]} 32. Bc1 {[%emt 0:00:27]} b4 {[%emt 0:00:16]} 33. cxb4 {[%emt 0:04:22]} Nxd4 {[%emt 0:00:09]} 34. Bf4 {[%emt 0:00:54]} Qg4 {[%emt 0:00:28]} 35. Qxg4 {[%emt 0:03:41]} hxg4 {[%emt 0:00:00]} 36. Ra2 {[%emt 0:00:30]} e5 {[%emt 0:00:25]} 37. Be3 {[%emt 0:00:40]} Ne6 {[%emt 0:00:18]} 38. Bc5 {[%emt 0:01:18]} Nxc5 {[%emt 0:01:28]} 39. bxc5 {[%emt 0:00:02]} Ra7 {[%emt 0:00:20]} 40. Rb1 {[%emt 0:00:00]} Kc7 {[%emt 0:00:00]} 41. h4 {[%emt 0:01:58]} gxh3 {[%emt 0:00:27]} 42. gxh3 {[%emt 0:00:05]} e4 {[%emt 0:22:24]} 43. h4 {[%emt 0:00:06]} Ne5 {[%emt 0:04:53]} 44. h5 {[%emt 0:00:04]} Nd3 {[%emt 0:04:58]} 45. h6 {[%emt 0:02:45]} Nxc5 {[%emt 0:00:44]} 46. h7 {[%emt 0:00:06]} Ra8 {[%emt 0:00:16]} 47. a7 {[%emt 0:00:08]} Nd7 {[%emt 0:01:08]} 48. Rb8 {[%emt 0:01:02]} Nxb8 {[%emt 0:00:36]} 49. h8=Q {[%emt 0:00:07]} Rxa7 {[%emt 0:00:09]} 50. Rxa7+ {[%emt 0:00:03]} 1-0

[Event "POL-chT 1st League 2020"]
[Site "Ustron"]
[Date "2020.09.05"]
[Round "1.6"]
[White "Marcinczyk, Monika"]
[Black "Wikar, Martyna"]
[Result "1-0"]
[ECO "B92"]
[WhiteElo "1934"]
[BlackElo "2045"]
[Annotator "ChessBase"]
[PlyCount "137"]
[EventDate "2020.09.05"]
[EventType "team-tourn"]
[EventCountry "POL"]
[SourceTitle "playchess.com"]
[Source "ChessBase"]
[SourceQuality "1"]
[TimeControl "40/5400+30:1800+30"]

1. e4 {[%emt 0:00:00]} c5 {[%emt 0:00:00]} 2. Nf3 {[%emt 0:00:00]} d6 {[%emt 0:00:00]} 3. d4 {[%emt 0:00:00]} cxd4 {[%emt 0:00:00]} 4. Nxd4 {[%emt 0:00:00]} Nf6 {[%emt 0:00:11]} 5. Nc3 {[%emt 0:00:00]} a6 {[%emt 0:00:09]} 6. Be2 {[%emt 0:00:27]} e5 {[%emt 0:00:13]} 7. Nb3 {[%emt 0:00:17]} Be7 {[%emt 0:00:31]} 8. Be3 {[%emt 0:00:12]} Be6 {[%emt 0:00:58]} 9. O-O {[%emt 0:01:18]} O-O {[%emt 0:00:41]} 10. Qd2 {[%emt 0:00:12]} Nbd7 {[%emt 0:01:38]} 11. a4 {[%emt 0:00:13]} Rc8 {[%emt 0:00:43]} 12. a5 {[%emt 0:00:13]} Qc7 {[%emt 0:02:15]} 13. Rfd1 {[%emt 0:00:27]} Qc6 {[%emt 0:05:01]} 14. Bf3 {[%emt 0:00:23]} Qc7 {[%emt 0:09:27]} 15. Nc1 {[%emt 0:02:53]} b5 {[%emt 0:10:29]} 16. axb6 {[%emt 0:11:54]} Nxb6 {[%emt 0:00:12]} 17. Bxb6 {[%emt 0:02:26]} Qxb6 {[%emt 0:00:12]} 18. Nd3 {[%emt 0:01:26]} Rfd8 {[%emt 0:03:05]} 19. Qe1 {[%emt 0:15:41]} Bc4 {[%emt 0:22:42]} 20. b3 {[%emt 0:05:25]} Be6 {[%emt 0:00:48]} 21. Na4 {[%emt 0:03:53]} Qb7 {[%emt 0:02:38]} 22. Ra2 {[%emt 0:02:41]} Bd7 {[%emt 0:11:21]} 23. Qb4 {[%emt 0:16:37]} Bc6 {[%emt 0:03:37]} 24. Qxb7 {[%emt 0:02:59]} Bxb7 {[%emt 0:00:02]} 25. Re1 {[%emt 0:00:29]} Rb8 {[%emt 0:05:34]} 26. Nab2 {[%emt 0:04:58]} Nd7 {[%emt 0:07:10]} 27. Bg4 {[%emt 0:12:57]} Nf6 {[%emt 0:01:40]} 28. Bf3 {[%emt 0:00:07]} Nd7 {[%emt 0:00:06]} 29. Nb4 {[%emt 0:02:07]} Nc5 {[%emt 0:01:30]} 30. N2d3 {[%emt 0:00:32]} Rdc8 {[%emt 0:07:49]} 31. Bg4 {[%emt 0:02:34]} Rc7 {[%emt 0:01:33]} 32. f3 {[%emt 0:00:24]} Bg5 {[%emt 0:01:38]} 33. Nxc5 {[%emt 0:04:53]} Rxc5 {[%emt 0:00:10]} 34. c4 {[%emt 0:01:48]} g6 {[%emt 0:01:30]} 35. Rd1 {[%emt 0:01:01]} Be3+ {[%emt 0:00:50]} 36. Kf1 {[%emt 0:00:12]} Bd4 {[%emt 0:00:18]} 37. Nc2 {[%emt 0:01:27]} Bc8 {[%emt 0:00:44]} 38. Bxc8 {[%emt 0:00:29]} Rcxc8 {[%emt 0:00:07]} 39. Nxd4 {[%emt 0:01:37]} exd4 {[%emt 0:00:01]} 40. Ra3 {[%emt 0:00:00]} Rb6 {[%emt 0:00:00]} 41. Rxd4 {[%emt 0:04:10]} Kg7 {[%emt 0:01:19]} 42. Ke2 {[%emt 0:00:23]} Kf6 {[%emt 0:00:07]} 43. Kd2 {[%emt 0:01:23]} Ke6 {[%emt 0:01:39]} 44. Kc3 {[%emt 0:04:49]} f5 {[%emt 0:01:28]} 45. exf5+ {[%emt 0:01:25]} gxf5 {[%emt 0:00:05]} 46. Rh4 {[%emt 0:02:48]} Rg8 {[%emt 0:05:43]} 47. Ra2 {[%emt 0:01:03]} Rgb8 {[%emt 0:04:10]} 48. Kd4 {[%emt 0:04:54]} Rxb3 {[%emt 0:01:34]} 49. Rh6+ {[%emt 0:01:40]} Ke7 {[%emt 0:03:16]} 50. Rxa6 {[%emt 0:02:37]} Rb2 {[%emt 0:04:03]} 51. Rxh7+ {[%emt 0:00:43]} Ke6 {[%emt 0:00:44]} 52. Rh6+ {[%emt 0:00:14]} Kf7 {[%emt 0:01:01]} 53. Raxd6 {[%emt 0:03:02]} Rxg2 {[%emt 0:00:37]} 54. Ke5 {[%emt 0:01:30]} Rc8 {[%emt 0:01:55]} 55. Rd4 {[%emt 0:01:30]} Rc5+ {[%emt 0:03:07]} 56. Kd6 {[%emt 0:04:45]} Ra5 {[%emt 0:00:17]} 57. c5 {[%emt 0:00:53]} Rc2 {[%emt 0:00:42]} 58. Rh7+ {[%emt 0:00:45]} Kg6 {[%emt 0:01:01]} 59. Rc7 {[%emt 0:00:34]} Rxh2 {[%emt 0:00:23]} 60. c6 {[%emt 0:01:40]} Rc2 {[%emt 0:03:31]} 61. Rc8 {[%emt 0:01:55]} Rac5 {[%emt 0:03:19]} 62. Kd7 {[%emt 0:00:59]} Kf6 {[%emt 0:00:53]} 63. f4 {[%emt 0:00:28]} Kg7 {[%emt 0:00:59]} 64. Rd6 {[%emt 0:01:07]} R2c4 {[%emt 0:00:38]} 65. c7 {[%emt 0:00:17]} Rc3 {[%emt 0:00:29]} 66. Kd8 {[%emt 0:00:23]} Rc2 {[%emt 0:00:50]} 67. Rd7+ {[%emt 0:01:21]} Kf8 {[%emt 0:00:07]} 68. Rb8 {[%emt 0:00:23]} Re2 {[%emt 0:00:35]} 69. Rd3 {[%emt 0:00:52]} 1-0

[Event "POL-chT 1st League 2020"]
[Site "Ustron"]
[Date "2020.09.05"]
[Round "1.10"]
[White "Godzwon, Iwo"]
[Black "Kokoszczynski, Jan"]
[Result "0-1"]
[ECO "B12"]
[WhiteElo "2317"]
[BlackElo "2231"]
[Annotator "ChessBase"]
[PlyCount "106"]
[EventDate "2020.09.05"]
[EventType "team-tourn"]
[EventCountry "POL"]
[SourceTitle "playchess.com"]
[Source "ChessBase"]
[SourceQuality "1"]
[TimeControl "40/5400+30:1800+30"]

1. e4 {[%emt 0:00:00]} c6 {[%emt 0:00:00]} 2. d4 {[%emt 0:00:00]} d5 {[%emt 0:00:00]} 3. e5 {[%emt 0:00:00]} c5 {[%emt 0:00:00]} 4. dxc5 {[%emt 0:00:16]} e6 {[%emt 0:00:05]} 5. Nf3 {[%emt 0:00:36]} Bxc5 {[%emt 0:01:23]} 6. a3 {[%emt 0:00:03]} Nc6 {[%emt 0:01:05]} 7. b4 {[%emt 0:00:39]} Bb6 {[%emt 0:00:05]} 8. Bb2 {[%emt 0:00:06]} f6 {[%emt 0:01:14]} 9. Bd3 {[%emt 0:05:46]} fxe5 {[%emt 0:00:22]} 10. Nxe5 {[%emt 0:00:14]} Qg5 {[%emt 0:00:10]} 11. Qg4 {[%emt 0:08:06]} Qxg4 {[%emt 0:00:05]} 12. Nxg4 {[%emt 0:00:04]} Nf6 {[%emt 0:00:02]} 13. Nxf6+ {[%emt 0:09:46]} gxf6 {[%emt 0:00:05]} 14. f4 {[%emt 0:03:31]} e5 {[%emt 0:10:14]} 15. fxe5 {[%emt 0:00:21]} fxe5 {[%emt 0:02:20]} 16. Nc3 {[%emt 0:14:04]} Be6 {[%emt 0:04:54]} 17. Na4 {[%emt 0:00:22]} Be3 {[%emt 0:10:20]} 18. Ke2 {[%emt 0:00:04]} Bh6 {[%emt 0:00:54]} 19. Nc5 {[%emt 0:00:08]} Bg4+ {[%emt 0:02:29]} 20. Ke1 {[%emt 0:00:03]} b6 {[%emt 0:22:02]} 21. Bb5 {[%emt 0:02:05]} Rc8 {[%emt 0:03:16]} 22. Nd3 {[%emt 0:13:53]} O-O {[%emt 0:04:19]} 23. Rf1 {[%emt 0:12:06]} Nd4 {[%emt 0:10:31]} 24. Rxf8+ {[%emt 0:01:17]} Kxf8 {[%emt 0:01:39]} 25. Bxd4 {[%emt 0:00:47]} exd4 {[%emt 0:00:01]} 26. Ba4 {[%emt 0:00:09]} Be3 {[%emt 0:11:07]} 27. Bb3 {[%emt 0:08:41]} Ke7 {[%emt 0:01:00]} 28. b5 {[%emt 0:00:59]} Kd6 {[%emt 0:01:35]} 29. a4 {[%emt 0:03:28]} Bf5 {[%emt 0:02:00]} 30. Ke2 {[%emt 0:04:23]} Rc3 {[%emt 0:00:46]} 31. Rb1 {[%emt 0:00:31]} Be4 {[%emt 0:01:18]} 32. Ne1 {[%emt 0:00:52]} Rc7 {[%emt 0:02:30]} 33. Rd1 {[%emt 0:01:03]} Rf7 {[%emt 0:06:02]} 34. Nf3 {[%emt 0:00:13]} Bxf3+ {[%emt 0:01:01]} 35. gxf3 {[%emt 0:00:04]} Rg7 {[%emt 0:00:01]} 36. c3 {[%emt 0:00:11]} Rg2+ {[%emt 0:00:05]} 37. Kd3 {[%emt 0:00:03]} Rxh2 {[%emt 0:00:46]} 38. cxd4 {[%emt 0:00:04]} Bf4 {[%emt 0:00:27]} 39. Rg1 {[%emt 0:00:38]} Rf2 {[%emt 0:01:42]} 40. Rg7 {[%emt 0:00:00]} Rxf3+ {[%emt 0:00:00]} 41. Kc2 {[%emt 0:00:19]} Be3 {[%emt 0:02:29]} 42. Rxh7 {[%emt 0:00:33]} Bxd4 {[%emt 0:01:37]} 43. Ba2 {[%emt 0:01:35]} Rf2+ {[%emt 0:05:51]} 44. Kb3 {[%emt 0:00:04]} Rf3+ {[%emt 0:01:19]} 45. Kc2 {[%emt 0:00:10]} Bf6 {[%emt 0:12:35]} 46. Rxa7 {[%emt 0:01:32]} d4 {[%emt 0:00:09]} 47. Rf7 {[%emt 0:01:10]} d3+ {[%emt 0:00:47]} 48. Kd2 {[%emt 0:05:55]} Kc5 {[%emt 0:00:21]} 49. Be6 {[%emt 0:00:24]} Kb4 {[%emt 0:01:07]} 50. Bd5 {[%emt 0:02:04]} Bc3+ {[%emt 0:03:29]} 51. Kd1 {[%emt 0:00:13]} Re3 {[%emt 0:00:05]} 52. Rf4+ {[%emt 0:00:50]} Ka3 {[%emt 0:00:50]} 53. Rf1 {[%emt 0:00:19]} d2 {[%emt 0:01:37]} 0-1

[Event "POL-chT 1st League 2020"]
[Site "Ustron"]
[Date "2020.09.05"]
[Round "1.11"]
[White "Praczukowski, Stanislaw"]
[Black "Kowalczyk, Pawel"]
[Result "0-1"]
[ECO "C07"]
[WhiteElo "2173"]
[BlackElo "2339"]
[Annotator "ChessBase"]
[PlyCount "122"]
[EventDate "2020.09.05"]
[EventType "team-tourn"]
[EventCountry "POL"]
[SourceTitle "playchess.com"]
[Source "ChessBase"]
[SourceQuality "1"]
[TimeControl "40/5400+30:1800+30"]

1. e4 {[%emt 0:00:00]} e6 {[%emt 0:00:00]} 2. d4 {[%emt 0:00:00]} d5 {[%emt 0:00:00]} 3. Nd2 {[%emt 0:00:29]} c5 {[%emt 0:00:07]} 4. Ngf3 {[%emt 0:00:26]} Nf6 {[%emt 0:02:43]} 5. exd5 {[%emt 0:01:37]} Nxd5 {[%emt 0:01:03]} 6. dxc5 {[%emt 0:05:26]} Bxc5 {[%emt 0:00:18]} 7. Ne4 {[%emt 0:00:20]} Be7 {[%emt 0:02:04]} 8. c3 {[%emt 0:10:26]} Nc6 {[%emt 0:00:21]} 9. Bd3 {[%emt 0:08:27]} O-O {[%emt 0:00:09]} 10. O-O {[%emt 0:05:44]} e5 {[%emt 0:00:11]} 11. Bc4 {[%emt 0:04:08]} Nb6 {[%emt 0:00:13]} 12. Qxd8 {[%emt 0:01:13]} Rxd8 {[%emt 0:00:06]} 13. Bb3 {[%emt 0:00:23]} h6 {[%emt 0:00:51]} 14. Be3 {[%emt 0:02:49]} Bg4 {[%emt 0:05:22]} 15. Rfd1 {[%emt 0:08:40]} Kf8 {[%emt 0:00:16]} 16. h3 {[%emt 0:01:58]} Bxf3 {[%emt 0:01:54]} 17. gxf3 {[%emt 0:00:11]} Na5 {[%emt 0:01:28]} 18. Bxb6 {[%emt 0:09:57]} axb6 {[%emt 0:00:03]} 19. Bd5 {[%emt 0:01:07]} f5 {[%emt 0:00:15]} 20. Ng3 {[%emt 0:00:12]} g6 {[%emt 0:00:05]} 21. b4 {[%emt 0:01:51]} Nc6 {[%emt 0:00:08]} 22. a4 {[%emt 0:00:27]} Rd6 {[%emt 0:02:09]} 23. Bb3 {[%emt 0:03:37]} Rad8 {[%emt 0:01:09]} 24. Rxd6 {[%emt 0:02:19]} Bxd6 {[%emt 0:00:02]} 25. Rd1 {[%emt 0:01:14]} Ke7 {[%emt 0:00:07]} 26. Nf1 {[%emt 0:01:32]} Bc7 {[%emt 0:11:31]} 27. Ne3 {[%emt 0:02:12]} Rxd1+ {[%emt 0:04:10]} 28. Bxd1 {[%emt 0:00:27]} Nd8 {[%emt 0:00:07]} 29. Bb3 {[%emt 0:01:08]} Ne6 {[%emt 0:00:22]} 30. Nd5+ {[%emt 0:05:34]} Kd6 {[%emt 0:00:21]} 31. Kf1 {[%emt 0:04:10]} Bd8 {[%emt 0:00:17]} 32. Ba2 {[%emt 0:05:52]} Ng5 {[%emt 0:02:35]} 33. Kg2 {[%emt 0:02:03]} Ne6 {[%emt 0:01:55]} 34. Kf1 {[%emt 0:00:22]} h5 {[%emt 0:00:07]} 35. Kg2 {[%emt 0:00:47]} Bg5 {[%emt 0:02:31]} 36. Kf1 {[%emt 0:03:25]} Bd2 {[%emt 0:06:59]} 37. Ke2 {[%emt 0:01:44]} Bh6 {[%emt 0:01:02]} 38. Kf1 {[%emt 0:00:16]} e4 {[%emt 0:01:44]} 39. Kg2 {[%emt 0:02:21]} Ke5 {[%emt 0:00:53]} 40. fxe4 {[%emt 0:00:00]} fxe4 {[%emt 0:00:00]} 41. Kh2 {[%emt 0:04:37]} Bf4+ {[%emt 0:01:18]} 42. Kg2 {[%emt 0:00:49]} Bd2 {[%emt 0:00:26]} 43. Kh2 {[%emt 0:03:45]} Ng5 {[%emt 0:00:32]} 44. Kg2 {[%emt 0:00:46]} Nf3 {[%emt 0:00:12]} 45. Kf1 {[%emt 0:01:47]} g5 {[%emt 0:00:27]} 46. Kg2 {[%emt 0:00:44]} h4 {[%emt 0:01:54]} 47. Bb3 {[%emt 0:07:17]} Ne1+ {[%emt 0:02:23]} 48. Kg1 {[%emt 0:02:15]} Nd3 {[%emt 0:00:42]} 49. Nxb6 {[%emt 0:01:27]} Bxc3 {[%emt 0:00:20]} 50. b5 {[%emt 0:00:41]} Be1 {[%emt 0:01:39]} 51. Nc4+ {[%emt 0:03:08]} Kd4 {[%emt 0:00:08]} 52. a5 {[%emt 0:00:22]} Bxf2+ {[%emt 0:00:19]} 53. Kf1 {[%emt 0:00:55]} Kc3 {[%emt 0:00:36]} 54. Ba2 {[%emt 0:01:02]} Bc5 {[%emt 0:00:49]} 55. a6 {[%emt 0:04:01]} bxa6 {[%emt 0:00:22]} 56. b6 {[%emt 0:00:14]} Nb4 {[%emt 0:02:58]} 57. b7 {[%emt 0:01:11]} Ba7 {[%emt 0:00:27]} 58. Ne5 {[%emt 0:00:44]} Kd4 {[%emt 0:00:09]} 59. Nd7 {[%emt 0:01:09]} Nxa2 {[%emt 0:00:06]} 60. b8=Q {[%emt 0:00:23]} Bxb8 {[%emt 0:00:07]} 61. Nxb8 {[%emt 0:00:04]} Nb4 {[%emt 0:00:47]} 0-1